fUSD/lending_fUSD_20240506
["ID","MTS","AMOUNT","RATE_DAILY","PERIOD"]
[326488892,1714998635016,-1561.26800831,0.00012675,2]
[326488894,1714998635028,-3499.67939162,0.00012794,2]
[326488896,1714998635038,-160.24266439,0.000129,2]
[326488900,1714998635047,-1339.95926467,0.000129,2]
[326488904,1714998635059,-1302.24553177,0.000129,2]
[326488906,1714998635070,-584.49,0.000129,2]
[326488907,1714998635082,-320.59098922,0.000129,2]
[326488908,1714998635304,-598.11050968,0.000129,2]
[326488915,1714998638761,-918.42931116,0.000129,2]
[326488916,1714998638773,-6513.85779353,0.000129,2]
[326488917,1714998638783,-2789.35453825,0.000129,2]
[326488918,1714998638792,-216.90349357,0.00012998,2]
[326488919,1714998638802,-1842.19122788,0.00012998,2]
[326488920,1714998638812,-1000.0,0.00012999,2]
[326488921,1714998638822,-245.55867605,0.00012999,2]
[326488922,1714998638832,-25192.13426966,0.00013,2]
[326488923,1714998638843,-21420.08844668,0.00013,2]
[326488924,1714998638856,-338.843476,0.00013,2]
[326488925,1714998638868,-648.55872,0.00013,2]
[326488926,1714998638879,-4572.54438704,0.00013,2]
[326488927,1714998638891,-32051.10000003,0.00013,2]
[326488938,1714998644954,-368.39517309,0.00013,2]
[326488948,1714998645235,-2213.55524596,0.00013,2]
[326488949,1714998647159,-3269.3124647,0.00012999,2]
[326488950,1714998647168,-4938.28864795,0.00013,2]
[326488951,1714998647180,-1290.15518773,0.00013,2]
[326488965,1714998650618,-555.37753387,0.00013,2]
[326488966,1714998653364,-12752.09824917,0.00013,2]
[326488967,1714998653376,-320.25,0.00013,2]
[326488968,1714998653388,-598.63936,0.00013,2]
[326488995,1714999838975,-711.42259671,0.00011818,2]
[326488997,1714999838985,-155.0,0.00011819,2]
[326488998,1714999838997,-1997.58249871,0.00011819,2]
[326489000,1714999839008,-1500.0,0.00011822,2]
[326489003,1714999839017,-207.8,0.00011907,2]
[326489005,1714999839027,-174.79,0.00012162,2]
[326489006,1714999839036,-161.7,0.00012253,2]
[326489007,1714999839047,-772.44,0.00012284,2]
[326489009,1714999839058,-161.7,0.00012312,2]
[326489011,1714999839067,-161.7,0.0001237,2]
[326489013,1714999839078,-161.7,0.00012428,2]
[326489015,1714999839091,-8618.29,0.00012428,2]
[326489017,1714999839101,-150.99,0.00012428,2]
[326489019,1714999839111,-161.7,0.00012486,2]
[326489021,1714999839123,-128.18490458,0.00012544,2]
[326489023,1714999839136,-33.51509542,0.00012544,2]
[326489025,1714999839146,-161.7,0.00012602,2]
[326489027,1714999839155,-240.77212493,0.00012617,2]
[326489029,1714999839178,-802.20039848,0.00012617,2]
[326489032,1714999839193,-2100.0,0.00012617,2]
[326489034,1714999839208,-356.70686821,0.00012617,2]
[326489036,1714999839218,-161.7,0.0001266,2]
[326489038,1714999839228,-200.0,0.000127,4]
[326489040,1714999839239,-161.7,0.00012718,2]
[326489042,1714999839250,-161.7,0.00012776,2]
[326489044,1714999839260,-125.82729831,0.000128,4]
[326489047,1714999839637,-374.17270169,0.000128,4]
[326489050,1714999839647,-161.7,0.00012834,2]
[326489052,1714999839656,-217.22834387,0.00012845,2]
[326489055,1714999839668,-1344.03966444,0.00012845,2]
[326489057,1714999839678,-161.7,0.00012892,2]
[326489059,1714999839688,-826.196,0.000129,2]
[326489061,1714999839697,-8018.42443269,0.000129,2]
[326489063,1714999839716,-6912.64856731,0.000129,2]
[326489065,1714999839726,-160.24266439,0.000129,2]
[326489067,1714999839736,-2369.5981,0.000129,2]
[326489069,1714999839746,-10772.23361107,0.000129,2]
[326489071,1714999839756,-800.0,0.000129,4]
[326489073,1714999839766,-313.32365092,0.000129,2]
[326489075,1714999839775,-266.03,0.00012912,2]
[326489077,1714999839785,-200.0,0.00012935,2]
[326489078,1714999839795,-293.8,0.0001299,2]
[326489079,1714999839805,-293.8,0.0001299,2]
[326489080,1714999839814,-293.8,0.0001299,2]
[326489081,1714999839824,-293.8,0.0001299,2]
[326489082,1714999839833,-293.8,0.0001299,2]
[326489083,1714999839843,-293.8,0.0001299,2]
[326489084,1714999839853,-293.8,0.0001299,2]
[326489085,1714999839864,-293.8,0.0001299,2]
[326489086,1714999839874,-293.8,0.0001299,2]
[326489087,1714999839884,-293.8,0.0001299,2]
[326489088,1714999839894,-155.0,0.00012998,2]
[326489089,1714999839904,-161.59865266,0.00012998,2]
[326489090,1714999839913,-155.00010177,0.00012998,2]
[326489091,1714999839924,-621.65874202,0.00012998,2]
[326489092,1714999839933,-377.0367828,0.00012998,2]
[326489093,1714999839943,-239.93206168,0.00012998,2]
[326489094,1714999839952,-161.96755022,0.00012998,2]
[326489095,1714999839968,-928.33887583,0.00012998,2]
[326489096,1714999839978,-157.0866785,0.00012998,2]
[326489097,1714999839987,-1953.06766667,0.00012998,2]
[326489098,1714999840001,-371.1948287,0.00012998,2]
[326489099,1714999840012,-168.93503482,0.00012999,2]
[326489100,1714999840022,-409.15399551,0.00012999,2]
[326489101,1714999840032,-262.98021046,0.00012999,2]
[326489102,1714999840043,-4894.5269847,0.00012999,2]
[326489103,1714999840057,-155.0,0.00012999,2]
[326489104,1714999840067,-1637.08444494,0.00012999,2]
[326489105,1714999840080,-93886.66149707,0.00013,2]
[326489106,1714999840094,-600.0,0.00013,2]
[326489107,1714999840106,-2708.4,0.00013,2]
[326489108,1714999840118,-300.33,0.00013,2]
[326489109,1714999840130,-637.7,0.00013,2]
[326489110,1714999840142,-755.44983949,0.00013,2]
[326489111,1714999840154,-5527.499925,0.00013,2]
[326489116,1714999840452,-679.09894319,0.00013,2]
[326489117,1714999840480,-3118.3,0.00013,2]
[326489118,1714999840492,-535.5224417,0.00013,2]
[326489119,1714999840505,-636.00275965,0.00013,2]
[326489120,1714999840517,-306.33871259,0.00013,2]
[326489121,1714999840535,-839.82630371,0.00013,2]
[326489122,1714999840547,-1535.00468147,0.00013,2]
[326489127,1714999841146,-490.22155982,0.00013,2]
[326489128,1714999841159,-2196.95113655,0.00013,2]
[326489130,1714999841171,-766.92448335,0.00013,2]
[326489132,1714999841185,-7676.28,0.00013,2]
[326489134,1714999841199,-770.95426543,0.00013,2]
[326489135,1714999841219,-1388.60517012,0.00013,2]
[326489136,1714999841231,-2707.93359867,0.00013,2]
[326489137,1714999841244,-184013.55393277,0.00013,2]
[326489138,1714999841256,-493.84578843,0.00013,2]
[326489139,1714999841268,-320.31457391,0.00013,2]
[326489140,1714999841280,-1249.22,0.00013,2]
[326489141,1714999841306,-749.75738945,0.00013,2]
[326489142,1714999841322,-712.54449098,0.00013,2]
[326489143,1714999841337,-720.44315569,0.00013,2]
[326489144,1714999841349,-906.45635291,0.00013,2]
[326489145,1714999841362,-622.39806248,0.00013,2]
[326489146,1714999841374,-746.75492337,0.00013,2]
[326489147,1714999841386,-686.73182307,0.00013,2]
[326489151,1714999845157,-1174.75806961,0.000129,2]
[326489152,1714999845179,-818.03842971,0.000129,2]
[326489153,1714999845197,-447.88872164,0.000129,2]
[326489154,1714999845209,-63564.11127837,0.00013,2]
[326489155,1714999845220,-31967.21407608,0.00013,2]
[326489164,1714999845539,-818.78492578,0.00013,2]
[326489169,1714999845555,-772.62304012,0.00013,2]
[326489205,1714999845770,-308397.90170324,0.00013,2]
[326489207,1714999845783,-371092.23147823,0.00013,2]
[326489209,1714999845797,-293.774,0.00013,2]
[326489211,1714999845809,-843.33369545,0.00013,2]
[326489213,1714999845821,-622.9468,0.00013,2]
[326489215,1714999845833,-785.83929877,0.00013,2]
[326489217,1714999845844,-3522.75977436,0.00013,2]
[326489240,1714999846107,-389.24215989,0.00013,2]
[326489241,1714999846118,-650.65,0.00013,2]
[326489242,1714999846130,-746.79427087,0.00013,2]
[326489243,1714999846141,-594.62898012,0.00013,2]
[326489261,1714999847515,-4643.55801308,0.00013,2]
[326489263,1714999847526,-6647.48248,0.00013,2]
[326489265,1714999847537,-4973.7,0.00013,2]
[326489266,1714999847870,-510.898,0.00013,2]
[326489267,1714999847882,-959.60639431,0.00013,2]
[326489268,1714999847893,-375.0029157,0.00013,2]
[326489269,1714999847905,-639.91342,0.00013,2]
[326489270,1714999847916,-841.97336927,0.00013,2]
[326489271,1714999847927,-1564.5228,0.00013,2]
[326489272,1714999847938,-2439.97664456,0.00013,2]
[326489273,1714999847949,-2322.93900363,0.00013,2]
[326489274,1714999847964,-8324.7248172,0.00013,2]
[326489275,1714999847975,-831.85701845,0.00013,2]
[326489276,1714999848075,-770.89640887,0.00013,2]
[326489281,1714999850256,2543.7567469,9.75e-05,2]
[326489284,1714999955307,37892.40784949,9.75e-05,2]
[326490304,1715001033012,-363.77766344,0.00011446,2]
[326490305,1715001033022,-337.76161456,0.00011447,2]
[326490306,1715001033034,-304.63612664,0.00011447,2]
[326490307,1715001033044,-343.85597693,0.00011447,2]
[326490308,1715001033054,-416.22573594,0.00011448,2]
[326490309,1715001033065,-253.083484,0.00011448,2]
[326490310,1715001033077,-1549.38346555,0.00011448,2]
[326490311,1715001033087,-1500.0,0.00011451,2]
[326490312,1715001033096,-764.31212645,0.00011452,2]
[326490313,1715001033108,-432.17787355,0.00011452,2]
[326490314,1715001033117,-604.0,0.00011528,2]
[326490315,1715001033127,-200.0,0.00011531,2]
[326490316,1715001033136,-206.8,0.00011571,2]
[326490317,1715001033146,-1206.77,0.00011604,2]
[326490318,1715001033155,-300.0,0.00011608,2]
[326490319,1715001033165,-35306.4644968,0.00011609,2]
[326490320,1715001033174,-5730.17,0.0001161,2]
[326490321,1715001033184,-643.69,0.00011803,2]
[326490322,1715001033201,-428.26,0.0001183,2]
[326490323,1715001033210,-2029.81619606,0.0001191,2]
[326490324,1715001033219,-1000.0,0.00012188,2]
[326490325,1715001033229,-817.95,0.00012189,2]
[326490326,1715001033239,-264.3,0.00012189,2]
[326490327,1715001033249,-499.99,0.0001219,2]
[326490328,1715001033259,-171.26,0.00012304,2]
[326490329,1715001033268,-3168.71929079,0.00012348,2]
[326490330,1715001033279,-245.65,0.00012394,2]
[326490331,1715001033290,-3250.70955628,0.00012674,2]
[326490332,1715001033304,-248.96983534,0.00012674,2]
[326490333,1715001033314,-3963.6683,0.00012799,2]
[326490334,1715001033323,-10912.36186866,0.000128,2]
[326490335,1715001033338,-1335.28216049,0.000128,2]
[326490336,1715001033350,-384.79746584,0.000128,2]
[326490337,1715001033360,-167.04192647,0.000128,2]
[326490338,1715001033371,-1561.26800831,0.00012815,2]
[326490339,1715001033380,-79.96514032,0.00012868,2]
[326490362,1715001038727,-1000.0,0.00012,2]
[326490363,1715001038738,-383.80204711,0.00012868,2]
[326490364,1715001038747,-3627.79795289,0.0001287,2]
[326490365,1715001038760,-33380.06390132,0.0001287,2]
[326490366,1715001038770,-3397.599,0.0001287,2]
[326490367,1715001038780,-160.21,0.00012889,2]
[326490368,1715001038791,-160.21,0.0001289,2]
[326490369,1715001038800,-147831.77865415,0.00012899,2]
[326490370,1715001038812,-7794.88902453,0.00012899,2]
[326490371,1715001038824,-419.40022823,0.00012899,2]
[326490372,1715001038836,-604.66158509,0.00012899,2]
[326490375,1715001040548,-774.52375,0.00012899,2]
[326490401,1715001040961,-900.94668277,0.00012899,2]
[326490402,1715001040976,-12281.394,0.00012899,2]
[326490403,1715001040987,-1727.53772828,0.00012899,2]
[326490404,1715001041000,-2762.66955118,0.00012899,2]
[326490405,1715001041012,-886.45947666,0.00012899,2]
[326490406,1715001041031,-1278.08174437,0.00012899,2]
[326490407,1715001041043,-866.57163133,0.00012899,2]
[326490408,1715001041056,-31749.99999999,0.00012899,2]
[326490412,1715001045253,-2868.86999997,0.00012899,2]
[326490414,1715001045274,-599.62150481,0.00012899,2]
[326490416,1715001045287,-386.7847,0.00012899,2]
[326490418,1715001045298,-29372.12747516,0.00012899,2]
[326490420,1715001045308,-17538.1256,0.000129,2]
[326490422,1715001045318,-1880.6202,0.000129,2]
[326490423,1715001045328,-223039.08457832,0.000129,2]
[326490479,1715001045728,-21102.69772168,0.000129,2]
[326490480,1715001045738,-65452.4779,0.000129,2]
[326490481,1715001045749,-1000.0,0.000129,2]
[326490483,1715001045759,-25708.0288,0.000129,2]
[326490485,1715001045768,-232.2857,0.000129,2]
[326490488,1715001045778,-9874.54747686,0.000129,2]
[326490492,1715001045788,-151.0,0.000129,2]
[326490496,1715001045798,-151.0,0.000129,2]
[326490498,1715001045809,-151.0,0.000129,2]
[326490499,1715001045819,-151.0,0.000129,2]
[326490500,1715001045832,-2432.96152807,0.000129,2]
[326490501,1715001045842,-151.0,0.000129,2]
[326490502,1715001045852,-151.0,0.000129,2]
[326490503,1715001045862,-800.0,0.00012959,2]
[326490504,1715001045872,-191.03468,0.00012989,2]
[326490505,1715001045883,-8353.4847564,0.00012989,2]
[326490506,1715001045893,-358.85009492,0.00012998,2]
[326490507,1715001045903,-1195.50843718,0.00012998,2]
[326490508,1715001045913,-227.12393149,0.00012998,2]
[326490509,1715001045923,-408.81148644,0.00012998,2]
[326490510,1715001045933,-170.13823566,0.00012998,2]
[326490511,1715001045943,-11427.55860354,0.00012998,2]
[326490512,1715001045959,-328.98309878,0.00012998,2]
[326490513,1715001045969,-156.38305915,0.00012998,2]
[326490514,1715001045979,-1211.30074394,0.00012998,2]
[326490515,1715001045989,-297.98372073,0.00012998,2]
[326490516,1715001045999,-1244.4085051,0.00012998,2]
[326490517,1715001046010,-155.74584434,0.00012998,2]
[326490518,1715001046020,-2356.23677028,0.00012998,2]
[326490520,1715001046029,-767003.89982343,0.00013,2]
[326490522,1715001046043,-415.68909921,0.00013,2]
[326490524,1715001046056,-309850.45696969,0.00013,2]
[326490527,1715001046067,-5001.07435262,0.00013,2]
[326490529,1715001046077,-3548.46867693,0.00013,2]
[326490531,1715001046088,-371.96013529,0.00013,2]
[326490533,1715001046100,-685.50165271,0.00013,2]
[326490535,1715001046112,-5948.08404381,0.00013,2]
[326490537,1715001046124,-313.33673242,0.00013,2]
[326490546,1715001046202,-4885.89183532,0.00013,2]
[326490814,1715001048806,309.192819,9.75e-05,2]
[326490827,1715001048913,-263.58999714,0.00012898,2]
[326490829,1715001048924,-247.40768325,0.00012898,2]
[326490831,1715001048933,-341.18749065,0.00012898,2]
[326490833,1715001048943,-139.95840937,0.00012898,2]
[326490835,1715001048957,-183.11273377,0.00012898,2]
[326490837,1715001048966,-500.0,0.00012898,2]
[326490839,1715001048976,-6949.92728303,0.00013,2]
[326490847,1715001049039,-742.71442405,0.00013,2]
[326490973,1715001050273,-176.32,0.00012091,2]
[326490976,1715001050283,-6210.98175083,0.00013,2]
[326491798,1715001065929,11047.79580844,9.75e-05,2]
[326491937,1715001703214,-10000.0,0.00013,7]
[326491938,1715001706512,-10000.0,0.00013,7]
[326491939,1715001709265,-5229.9262205,0.00013,7]
[326491940,1715001726357,-500.0,9.671e-05,2]
[326491941,1715001726381,-500.0,9.672e-05,2]
[326491942,1715001726406,-500.0,9.672e-05,2]
[326491943,1715001726429,-500.0,9.672e-05,2]
[326491944,1715001726454,-2770.0737795,9.75e-05,2]
[326491945,1715001735982,-5103.2764061,9.75e-05,2]
[326491946,1715001736898,-3219.717519,0.0001265,2]
[326491947,1715001736921,-1561.26800831,0.00012754,2]
[326491948,1715001736944,-115.73806659,0.00012799,2]
[326491949,1715001741048,-4116.59747411,9.67e-05,2]
[326491950,1715001741563,-5883.40252589,0.00012799,2]
[326491951,1715001743601,-10000.0,0.00012799,2]
[326491952,1715001745543,-102.29210752,0.00012799,2]
[326491953,1715001745588,-9897.70789248,0.00012899,2]
[326491954,1715001748608,-2734.73360251,0.00012899,2]
[326491955,1715001748632,-1674.7609,0.000129,2]
[326491956,1715001748654,-1076.1097,0.000129,2]
[326491957,1715001748676,-4514.39579749,0.0001299,2]
[326491958,1715001753724,-10000.0,0.0001299,2]
[326491959,1715001754861,-10000.0,0.0001299,2]
[326491960,1715001756434,-5623.89341731,0.0001299,2]
[326491961,1715001756459,-2478.2206558,0.0001299,2]
[326491962,1715001756485,-1114.1986584,0.0001299,2]
[326491963,1715001756508,-172.4859177,0.0001299,2]
[326491964,1715001756531,-534.92361,0.0001299,2]
[326491965,1715001756557,-76.27774079,0.0001299,2]
[326491966,1715001757891,-2319.42435551,0.0001299,2]
[326491967,1715001757914,-641.710378,0.00012999,2]
[326491968,1715001757938,-7038.86526649,0.00013,2]
[326491969,1715001759920,-10000.0,0.00013,2]
[326491970,1715001761994,-10000.0,0.00013,2]
[326491971,1715001764179,-7449.82532149,0.00013,2]
[326491972,1715001764203,-1000.0,0.00013,2]
[326491973,1715001764225,-1000.0,0.00013,2]
[326491974,1715001764247,-550.17467851,0.00013,2]
[326491975,1715001765251,-449.82532149,0.00013,2]
[326491976,1715001765274,-1000.0,0.00013,2]
[326491977,1715001765296,-1000.0,0.00013,2]
[326491978,1715001765318,-1000.0,0.00013,2]
[326491979,1715001765340,-1000.0,0.00013,2]
[326491980,1715001765366,-1000.0,0.00013,2]
[326491981,1715001765405,-1000.0,0.00013,2]
[326491982,1715001765433,-1000.0,0.00013,2]
[326491983,1715001765456,-1000.0,0.00013,2]
[326491984,1715001765479,-1000.0,0.00013,2]
[326491985,1715001765502,-550.17467851,0.00013,2]
[326491986,1715001767058,-449.82532149,0.00013,2]
[326491987,1715001767081,-1000.0,0.00013,2]
[326491988,1715001767104,-1000.0,0.00013,2]
[326491989,1715001767126,-1000.0,0.00013,2]
[326491990,1715001767152,-1000.0,0.00013,2]
[326491991,1715001767174,-1000.0,0.00013,2]
[326491992,1715001767196,-1000.0,0.00013,2]
[326491993,1715001767216,-1000.0,0.00013,2]
[326491994,1715001767238,-1000.0,0.00013,2]
[326491995,1715001767258,-1000.0,0.00013,2]
[326491996,1715001767280,-550.17467851,0.00013,2]
[326491997,1715001770055,-449.82532149,0.00013,2]
[326491998,1715001770077,-1000.0,0.00013,2]
[326491999,1715001770102,-1000.0,0.00013,2]
[326492000,1715001770124,-1000.0,0.00013,2]
[326492001,1715001770147,-1000.0,0.00013,2]
[326492002,1715001770173,-1000.0,0.00013,2]
[326492003,1715001770195,-1000.0,0.00013,2]
[326492004,1715001770216,-193.86981542,0.00013,2]
[326492005,1715001770239,-151.0,0.00013,2]
[326492006,1715001770260,-255.713772,0.00013,2]
[326492007,1715001770281,-200.0,0.00013,2]
[326492008,1715001770303,-2749.59109109,0.00013,2]
[326492009,1715001812162,-4400.0,0.0001299,2]
[326492010,1715001835484,-707.59365996,0.00011999,2]
[326492011,1715001835509,-6712.18532289,0.00012,2]
[326492012,1715001835531,-235.0404777,0.0001299,2]
[326492013,1715001835554,-2345.18053945,0.0001299,2]
[326492014,1715001840874,-10000.0,0.0001299,2]
[326492015,1715001847063,-150.0,0.00012989,2]
[326492016,1715001847092,-9850.0,0.0001299,2]
[326492017,1715002057807,538.73264055,0.00012789,2]
[326492018,1715002070895,-1240.3390258,0.0001279,2]
[326492030,1715002237086,-313.48100007,0.00012725,2]
[326492036,1715002237369,-1115.87156793,0.00012725,2]
[326492037,1715002237379,-1929.61998117,0.00012789,2]
[326492038,1715002237391,-333.38001883,0.00012789,2]
[326492039,1715002237400,-675.07509618,0.00012849,2]
[326492040,1715002237410,-1779.07166635,0.0001299,2]
[326492041,1715002237422,-834.4371283,0.00012991,2]
[326492042,1715002237431,-408.614593,0.00012991,2]
[326492043,1715002237440,-5452.8223614,0.00012991,2]
[326492044,1715002237449,-13102.63452577,0.00012991,2]
[326492045,1715002237650,-305.0,0.00012991,2]
[326492046,1715002237662,-480.55860352,0.00012991,2]
[326492047,1715002237675,-6772.56099151,0.00012991,2]
[326492048,1715002237685,-1920.2248498,0.00012991,2]
[326492049,1715002237696,-914.91844431,0.00013,2]
[326492055,1715002239168,-1370.3039149,0.00013,2]
[326492056,1715002239179,-3000.0,0.00013,2]
[326492057,1715002239189,-654.36,0.0001324,2]
[326492058,1715002239200,-204.8,0.00013311,2]
[326492059,1715002239211,-916.76996632,0.00013315,2]
[326492060,1715002239229,-1377.50003368,0.00013315,2]
[326492061,1715002239266,-301.39,0.00013333,2]
[326492062,1715002239277,-172.08,0.00013425,2]
[326492063,1715002239287,-72.01996632,0.00013661,2]
[326492064,1715002239299,-82.77003368,0.00013661,2]
[326492065,1715002239309,-190.20763381,0.00013699,2]
[326492097,1715002240116,-9.79236619,0.00013699,2]
[326492098,1715002240126,-200.0,0.00013699,2]
[326492099,1715002240136,-200.0,0.00013699,2]
[326492100,1715002240145,-200.0,0.00013699,2]
[326492101,1715002240155,-200.0,0.00013699,2]
[326492103,1715002240165,-200.0,0.00013699,2]
[326492105,1715002240175,-200.0,0.00013699,2]
[326492107,1715002240185,-200.0,0.00013699,2]
[326492108,1715002240195,-200.0,0.00013699,2]
[326492109,1715002240204,-200.0,0.00013699,2]
[326492110,1715002240214,-150.0,0.00013699,2]
[326492111,1715002240224,-205.06,0.00013809,2]
[326492112,1715002240233,-205.06,0.00013847,2]
[326492113,1715002240243,-205.06,0.00013884,2]
[326492114,1715002240252,-205.06,0.00013922,2]
[326492115,1715002240263,-205.06,0.0001396,2]
[326492116,1715002240272,-205.06,0.00013998,2]
[326492117,1715002240285,-205.06,0.00014036,2]
[326492118,1715002240296,-2980.84281949,0.00014073,2]
[326492119,1715002240308,-2130.11358051,0.00014073,2]
[326492120,1715002240317,-205.06,0.00014074,2]
[326492121,1715002240327,-205.06,0.00014112,2]
[326492122,1715002240337,-205.06,0.00014149,2]
[326492123,1715002240346,-205.06,0.00014187,2]
[326492124,1715002240356,-419.86,0.00014192,2]
[326492125,1715002240366,-205.06,0.00014225,2]
[326492126,1715002240376,-205.06,0.00014263,2]
[326492127,1715002240386,-205.06,0.00014301,2]
[326492128,1715002240395,-205.06,0.00014339,2]
[326492129,1715002240404,-205.06,0.00014377,2]
[326492130,1715002240414,-205.06,0.00014415,2]
[326492131,1715002240424,-205.06,0.00014452,2]
[326492132,1715002240434,-205.06,0.0001449,2]
[326492133,1715002240443,-205.06,0.00014528,2]
[326492134,1715002240453,-171.28,0.00014728,2]
[326492135,1715002240462,-654.36,0.00014895,2]
[326492136,1715002240472,-202.86957233,0.00014899,5]
[326492137,1715002240481,-17543.1396,0.000149,2]
[326492138,1715002240491,-2231.98446726,0.00014985,2]
[326492139,1715002240500,-151.82,0.0001499,2]
[326492140,1715002240509,-155.24178953,0.00014998,2]
[326492141,1715002240519,-982.72910362,0.00014998,2]
[326492142,1715002240529,-208.04498106,0.00014998,2]
[326492143,1715002240538,-178.14155541,0.00014998,2]
[326492145,1715002240548,-204.49787843,0.00014998,2]
[326492146,1715002240558,-781.72439297,0.00014998,2]
[326492147,1715002240567,-1002.59231789,0.00014998,2]
[326492148,1715002240577,-586.35191901,0.00014998,2]
[326492149,1715002240586,-2478.78749712,0.00014998,2]
[326492151,1715002240596,-211.42088076,0.00014998,2]
[326492153,1715002240606,-1154.74755341,0.00014998,2]
[326492154,1715002240615,-2284.00624,0.00014998,2]
[326492155,1715002240625,-787.58875702,0.00014998,2]
[326492156,1715002240634,-711.12583595,0.00014998,2]
[326492157,1715002240649,-197.0776875,0.00014998,2]
[326492158,1715002240660,-830.30153452,0.00014999,2]
[326492159,1715002240669,-8696.34365557,0.00014999,2]
[326492160,1715002240679,-7109.71387244,0.00014999,2]
[326492161,1715002240688,-301.39,0.00015,2]
[326492162,1715002240704,-5000.0,0.00015,2]
[326492163,1715002240714,-67467.13020719,0.00015,2]
[326492164,1715002240726,-3229.4337803,0.00015,2]
[326492165,1715002240839,-768.21566172,0.00015,2]
[326492166,1715002240851,-3647.2958269,0.00015,2]
[326492167,1715002240863,-2840.20735141,0.00015,2]
[326492168,1715002240876,-361.32,0.00015,2]
[326492169,1715002240889,-432.917,0.00015,2]
[326492180,1715002244580,-641.32,0.0001499,3]
[326492181,1715002244589,-391.68516296,0.00015,2]
[326492182,1715002244600,-332.59159891,0.00015,2]
[326492183,1715002244874,-934.38,0.00015,2]
[326492192,1715002246669,-14363.97464719,0.00015,2]
[326492193,1715002246679,-1018.0,0.00015,2]
[326492194,1715002247372,-3185.59392,0.00015,2]
[326492195,1715002247383,-6084.33914369,0.00015,2]
[326492196,1715002247394,-31577.00041486,0.00015,2]
[326492217,1715002506181,150.0,6.001e-05,2]
[326492218,1715002506204,150.0,6.001e-05,2]
[326492219,1715002506227,150.0,6.001e-05,2]
[326492220,1715002506249,150.0,6.001e-05,2]
[326492221,1715002506272,150.0,6.001e-05,2]
[326492222,1715002506303,250.0,6.001e-05,2]
[326492223,1715002565478,257.72233972,6.001e-05,2]
[326492224,1715002570303,150.0,6e-05,2]
[326492225,1715002570369,43.02952027,6e-05,2]
[326492226,1715002579361,150.0,6.001e-05,2]
[326492227,1715002580022,107.72233972,6.001e-05,2]
[326492228,1715002598397,150.0,6.001e-05,2]
[326492229,1715002599235,107.72233972,6.001e-05,2]
[326492230,1715002611290,257.72233972,6.001e-05,2]
[326492231,1715002637308,150.0,6.001e-05,2]
[326492232,1715002637331,107.72233972,6.001e-05,2]
[326492233,1715002639054,20531.60387316,6.001e-05,2]
[326492235,1715002652737,150.0,6.001e-05,2]
[326492236,1715002652763,107.72233972,6.001e-05,2]
[326492237,1715002671917,257.72233972,6.001e-05,2]
[326492239,1715002678451,150.0,6.001e-05,2]
[326492240,1715002678694,150.0,6.001e-05,2]
[326492241,1715002679530,118.15001974,6.001e-05,2]
[326492242,1715002690834,257.72233972,6.001e-05,2]
[326492243,1715002695786,150.0,6.001e-05,2]
[326492244,1715002696636,150.0,6.001e-05,2]
[326492245,1715002697058,150.0,6.001e-05,2]
[326492246,1715002706896,150.0,6.001e-05,2]
[326492247,1715002706919,107.72233972,6.001e-05,2]
[326492248,1715002711172,150.0,6.001e-05,2]
[326492249,1715002711647,150.0,6.001e-05,2]
[326492250,1715002712482,150.0,6.001e-05,2]
[326492251,1715002730770,257.72233972,6.001e-05,2]
[326492252,1715002732811,150.0,6.001e-05,2]
[326492253,1715002732856,600.0,6.001e-05,2]
[326492254,1715002749036,156.41172142,6.001e-05,2]
[326492279,1715003432353,-536.71621327,0.00012155,2]
[326492280,1715003432364,-370.54929492,0.00012155,2]